Workbook

Sheet Notice d'utilisation
A1: =" Notice d'utilisation" -> Notice d'utilisation
A2: 1. Préparer le tableau
A3: Télécharger ce tableur sur votre ordinateur
A4: Le renommer ainsi : "201_Dépenses_[Nom collectivité]_[année concernée].xlsm"
A5: Procédure de validation des dépenses dans le cadre du programme Slime+
A6: Vous êtes invité.e à lire attentivement le document "Guide procédure de validation des dépenses dans le cadre du programme Slime+" annexé à la convention signée avec Cler solutions, qui détaille toutes les règles de validation des dépenses du programme ainsi que les formes de contrôle possibles.
A7: 2. Compléter les onglets "Dépenses" et "Attestation" pour l'année concernée
A8: "Activez les macros" lors de l'ouverture du fichier
A9: Dans l'onglet "Dépenses", remplir toutes les cellules en jaune et menus déroulants en rouge foncé.
A10: Dans l'onglet "Attestation", remplir toutes les cellules en jaune et menus déroulants en rouge foncé, et renseigner les informations demandées écrites en rouge (bloc M5 / U9).
A11: Instructions spécifiques de remplissage du tableau pour les dépenses d'exploitation (onglets "Dépenses"): - Colonne "Détailler dépense si besoin" : rendre explicite pour votre référent à Cler solutions l'objet de la dépense. Indiquez éventuellement le n° de mandat pour faciliter la validation par le comptable public - Colonne "Date de pièce" : indiquer la date de la facture ou de la demande de paiement ou de signature de la convention de référence (s'il n'y a pas de facture ni de demande de paiement) - Colonne "N° et/ou type de pièce" : indiquer le numéro de la facture ou de la convention, ainsi que sa date d'émission ou de signature - Colonne "Date de règlement" : indiquer la date de règlement du paiement (qui doit correspondre à un mandat de paiement identifiable par le comptable public) - Colonne "Mode de règlement" : Virement bancaire, chèque, etc. - Dans la partie "Diagnostics sociotechniques et soutien renforcé", renseigner si possible les dépenses concernant les visites sur une ligne, celles concernant les soutiens renforcés sur une autre ligne, et de même pour les suivis N+1 (si tranche complémentaire retenue), les médiations (si tranche complémentaire retenue), ainsi que les déplacements (frais kilométriques) sur une ou plusieurs lignes (autant que d'attestations signées par agents concernés).
A12: Les dépenses d'exploitation dépassant le seuil de sondage s'affichent automatiquement en rouge dans les onglets "Dépenses" (plus de détails dans le document "Guide procédure de validation des dépenses dans le cadre du programme Slime+")
A13: Les dépenses de personnel dépassant 250€/jour s'affichent automatiquement en rouge dans les onglets "Dépenses" (plus de détails dans le document "Guide procédure de validation des dépenses dans le cadre du programme Slime+", en annexe de la convention signée avec Cler solutions)
A14: Après échanges préalables avec l'interlocuteur de Cler solutions, lui transmettre la première version stabilisée de ce tableau (sous format .xlsm) au plus tard le 17 janvier de l'année N+1.
A15: Bilan annuel avec votre référent à Cler solutions
A16: 3. Faire valider, attester et signer
A17: Envoyer à Cler solutions : - la version définitive de ce tableau (sous format .xlsm) au plus tard le 28/02 de l'année N+1 et avant les mises en signature - les pièces justificatives : les factures dont le montant dépasse le seuil de sondage (qui s'affichent en rouge dans l'onglet "Dépenses") et les éventuelles attestations sur l'honneur concernant les frais kilométriques (signées par les agents concernés).
A18: Cler solutions fera parvenir au référent du Slime la version PDF finale de l'onglet "Attestation" à mettre à la signature
A19: Faire signer et cacheter ce PDF par l'élu.e ou personne avec délégation de signature en charge du dispositif
A20: Faire signer et cacheter ce PDF par le.la comptable public afin qu'il.elle certifie les dépenses de frais directs uniquement (pas les dépenses de personnel)
A21: Faire signer et cacheter ce PDF par le.la responsable dûment habilité.e (DGA ou DGS, par exemple) afin qu'il.elle atteste le temps comptabilisé sur le dispositif Slime pour l'ensemble des agents mentionnés dans le récapitulatif de dépenses pour l'année concernée
A22: 4. Transmettre les éléments à Cler solutions
A23: Envoyer le fichier PDF "Attestation" de l'année concernée signé par toutes les parties par email (sous format .pdf ou.jpg) au plus tard le 15/03 de l'année N+1. Le fichier doit être lisible et de bonne qualité. Il n'est pas nécessaire d'envoyer l'onglet "Dépenses" associé.
A24: Email de votre interlocuteur à Cler solutions ou à défaut à slime@cler.org
A25: Pour toute question, merci de contacter votre référent à Cler solutions ou d'envoyer un courriel à slime@cler.org

Sheet Depenses 2022
A1: =" Récapitulatif des dépenses " & B3 & " - " & H3 -> Récapitulatif des dépenses - 2022
A2: Merci de détailler l'ensemble des frais et du temps pour les actions d'animation, la réalisation des diagnostics sociotechniques et soutiens renforcés, l'évaluation ainsi que les formations et l'accompagnement méthodologique.
A3: Collectivité | G3: Année | H3: 2022 | I3: Période | J3: du (JJ/MM/AAAA):
J4: au (JJ/MM/AAAA):
A5: 1. Coordination du dispositif et animation territoriale | K5: =K7+K13 -> 0
A6: Dépenses d'exploitation (Frais directs) | B6: détailler dépense si besoin | E6: Date de pièce | F6: N° et/ou type de pièce | H6: Date de règlement | I6: Mode de règlement | J6: Montant (€TTC)
K7: =SUM(J7:J11) -> 0
A12: Dépenses de personnel (Moyens humains) | B12: détailler dépense si besoin | C12: Type de coût | D12: Intitulé de poste | G12: Prénom NOM | I12: Temps passé (jours) | J12: Coût journalier (€)
K13: =SUMPRODUCT(I13:I22,J13:J22) -> 0
A23: 2. Diagnostics socio-techniques et soutien renforcé | K23: =K25+K35 -> 0
A24: Dépenses d'exploitation (Frais directs) | B24: détailler dépense si besoin (notamment indemnité/km et nombre de km pour les déplacements) | E24: Date de pièce | F24: N° et/ou type de pièce | H24: Date de règlement | I24: Mode de règlement | J24: Montant (€TTC)
K25: =SUM(J25:J33) -> 0
A34: Dépenses de personnel (Moyens humains) | B34: détailler dépense si besoin | C34: Type de coût | D34: Intitulé de poste | G34: Prénom NOM | I34: Temps passé (jours) | J34: Coût journalier (€)
K35: =SUMPRODUCT(I35:I44,J35:J44) -> 0
A45: 3. Evaluation | K45: =K47+K53 -> 0
A46: Dépenses d'exploitation (Frais directs) | B46: détailler dépense si besoin | E46: Date de pièce | F46: N° et/ou type de pièce | H46: Date de règlement | I46: Mode de règlement | J46: Montant (€TTC)
K47: =SUM(J47:J51) -> 0
A52: Dépenses de personnel (Moyens humains) | B52: détailler dépense si besoin | C52: Type de coût | D52: Intitulé de poste | G52: Prénom NOM | I52: Temps passé (jours) | J52: Coût journalier (€)
K53: =SUMPRODUCT(I53:I56,J53:J56) -> 0
A57: 4. Formations et accompagnement méthodologique | K57: =K58+K70 -> 0
A58: 4.1 Formations | K58: =K60+K66 -> 0
A59: Dépenses d'exploitation (Frais directs) | B59: détailler dépense si besoin | E59: Date de pièce | F59: N° et/ou type de pièce | H59: Date de règlement | I59: Mode de règlement | J59: Montant (€TTC)
K60: =SUM(J60:J64) -> 0
A65: Dépenses de personnel (Moyens humains) | B65: détailler dépense si besoin | C65: Type de coût | D65: Intitulé de poste | G65: Prénom NOM | I65: Temps passé (jours) | J65: Coût journalier (€)
K66: =SUMPRODUCT(I66:I69,J66:J69) -> 0
A70: 4.2 Accompagnement méthodologique | K70: =K72 -> 0
A71: Dépenses d'exploitation (Frais directs) | B71: détailler dépense si besoin | E71: Date de pièce | F71: N° et/ou type de pièce | H71: Date de règlement | I71: Mode de règlement | J71: Montant (€TTC)
K72: =SUM(J72:J76) -> 0
A77: Total des dépenses de personnel (TTC) | K77: =K13+K35+K53+K66 -> 0
A78: Coûts connexes | B78: 0.25 | K78: =B78*(K77) -> 0
A79: Total des dépenses réalisées par la collectivité (TTC) | K79: =K5+K23+K45+K57 -> 0
A80: Total des dépenses éligibles à un co-financement par le programme Slime (TTC) | K80: =K5+K23+K45+K57+K78 -> 0

Sheet Attestation 2022
A1: =" Attestation " & 'Depenses 2022'!D3 & " " & 'Depenses 2022'!H3 -> Attestation 2022
A2: Informations générales
A3: Nom de la collectivité | C3: ='Depenses 2022'!B3 -> 0 | H3: Année | K3: ='Depenses 2022'!H3 -> 2022 | M3: Attestation du.de la responsable dûment habilité.e pour engager légalement la structure | W3: 0
A4: Période | B4: du : | C4: ='Depenses 2022'!K3 -> 00:00:00
B5: au : | C5: ='Depenses 2022'!K4 -> 00:00:00 | H5: 1ère année Slime | K5: OUI | M5: Je, soussigné.e [élu.e en charge du dispositif], déclare que la totalité des actions et les dépenses reportées dans la synthèse ci-contre et détaillées dans l'onglet "Dépenses" ont été réalisées par [Nom de la structure] dans le cadre du programme Slime+ sur la période
A6: Type de territoire | B6: Conseil départemental | C6: Plafond maximum de co-financement CEE | E6: =IF($B$6="Conseil Régional",1900000,0)+IF($B$6="Conseil départemental",800000,0)+IF($B$6="Métropole",800000,0)+IF($B$6="Autre type",400000,0) -> 800000 | H6: Dispositif pluriannuel | K6: OUI
A7: ="Montant de co-financement maximal CEE " & 'Depenses 2022'!H3 -> Montant de co-financement maximal CEE 2022
A8: ="Montant de l'avance " & 'Depenses 2022'!H3 -> Montant de l'avance 2022
A9: ="Forfait " & K3 -> Forfait 2022 | M9: ="du " & TEXT(C4,"JJ/MM/AA") & " au " & TEXT(C5,"JJ/MM/AA") -> du 00/01/00 au 00/01/00
A10: Base | H10: Prévisionnel | I10: 300 | J10: Réalisé | K10: 300 | M10: Fait le: A: | R10: Nom, signature, cachet
A11: DST réalisé en deux visites ou en binôme | H11: NON | I11: =IF(H11="OUI",100,0) -> 0 | J11: NON | K11: =IF(J11="OUI",100,0) -> 0
A12: Profil "expert" | H12: NON | I12: 0 | J12: NON | K12: =IF(J12="OUI",100,0) -> 0
A13: Soutien renforcé (au-dela des 20% minimum) | H13: NON | I13: =IF(H13<>"NON",(MID(H13,3,2)*50),0) -> 0 | J13: NON | K13: =IF(J13<>"NON",(MID(J13,3,2)*50),0) -> 0
A14: Forte articulation avec des dispositifs de type FSATME | H14: NON | I14: =IF(H14="OUI",50,0) -> 0 | J14: NON | K14: =IF(J14="OUI",50,0) -> 0
A15: Suivi N+1 | H15: NON | I15: =IF(H15="OUI",50,0) -> 0 | J15: NON | K15: =IF(J15="OUI",50,0) -> 0 | M15: Visa du.de la comptable public.que certifiant le paiement des dépenses d'exploitation figurant dans l'onglet "Dépenses" de l'année correspondante au vu des justificatifs produits (à l'exclusion des frais kilométriques non-attestables par le comptable public)
A16: Réalisation d'une médiation | H16: NON | I16: =IF(H16="OUI",100,0) -> 0 | J16: NON | K16: =IF(J16="OUI",100,0) -> 0
A17: TOTAL | H17: =SUM(I10:I16) -> 300 | J17: =SUM(K10:K16) -> 300
M18: Fait le: A: | R18: Nom, signature, cachet
A19: si la collectivité réalise une pré-visite à distance et une visite physique | I19: =IF(J11="NON",J17+100,J17) -> 400
A20: si la collectivité n'a pu réaliser qu'une viiste à distance | I20: =IF(J11="NON",J17,J17-100) -> 300
A21: Information relative à la pandémie Covid-19
A22: ="En " & K3 & " la collectivité a réalisé des visites à distance:" -> En 2022 la collectivité a réalisé des visites à distance: | J22: NON
A24: ="Nombre de ménages accompagnés - valorisables" -> Nombre de ménages accompagnés - valorisables | M24: Conformément aux instructions précédemment transmises, la collectivité est tenue de transmettre au CLER, en même temps que la présente attestation dument complétée et signée, une copie des pièces justificatives (facture, convention, note de frais, etc.) de chaque dépense d'exploitation dont le montant dépasse:
A25: ="Nombre de ménages accompagnés - total" -> Nombre de ménages accompagnés - total
A26: dont ménages ayant reçu une pré-visite à distance et une visite physique | M26: =W3 -> 0
A27: dont ménages ayant reçu uniquement une visite à distance
A28: ="Activités " & 'Depenses 2022'!H3 -> Activités 2022 | B28: Actions | D28: Frais directs | E28: Moyens humains | F28: Coûts connexes | G28: Total | H28: Assiette dépenses éligibles | I28: Taux de co-financement CEE | J28: Plafonds de co-financement CEE | K28: Total de co-financement CEE | M28: Signature du.de la responsable dûment habilité.e (DGA, DGS, responsable RH) certifiant l'exactitude du temps déclaré sur le projet pour chacun des agents / pour l’ensemble des agents déclarés dans les dépenses de personnel
B29: 1. Animation territoriale | D29: =IF($K$6="OUI",'Depenses 2022'!K7,0) -> 0 | E29: =IF($K$6="OUI",'Depenses 2022'!K13,0) -> 0 | F29: =E29*0.25 -> 0 | G29: =D29+E29+F29 -> 0 | H29: =IF($K$5="OUI",50000,25000) -> 50000 | I29: =IF($K$3=2022,70%,0)+IF($K$3=2023,70%,0)+IF($K$3=2024,60%,0)+IF($K$3=2025,50%,0) -> 0.7 | J29: =H29*I29 -> 35000 | K29: =IF(G29>H29,J29,G29*I29) -> 0
B30: 2. Diagnostics socio-techniques et soutien renforcé | D30: ='Depenses 2022'!K25 -> 0 | E30: ='Depenses 2022'!K35 -> 0 | F30: =E30*0.25 -> 0 | G30: =D30+E30+F30 -> 0 | H30: =G30 -> 0 | I30: =IF($K$3=2022,70%,0)+IF($K$3=2023,70%,0)+IF($K$3=2024,60%,0)+IF($K$3=2025,50%,0) -> 0.7 | J30: =IF(J22="OUI",(I19*H26+I20*H27+(H24-H26-H27)*J17),J17*H24) -> 0 | K30: =IF(J30>(I30*G30),(I30*G30),J30) -> 0 | M30: Fait le: A: | R30: Nom, signature, cachet
B31: 3. Evaluation | D31: ='Depenses 2022'!K47 -> 0 | E31: ='Depenses 2022'!K53 -> 0 | F31: =E31*0.25 -> 0 | G31: =D31+E31+F31 -> 0 | H31: 20000 | I31: 0.7 | J31: =H31*I31 -> 14000 | K31: =IF((G31*I31)>J31,J31,G31*I31) -> 0
B32: 4.1 Formations | D32: ='Depenses 2022'!K60 -> 0 | E32: ='Depenses 2022'!K66 -> 0 | F32: =E32*0.25 -> 0 | G32: =D32+E32+F32 -> 0 | H32: =G32 -> 0 | I32: 0.75 | J32: N/A | K32: =I32*G32 -> 0
B33: 4.2 Accompagnement méthodologique | D33: ='Depenses 2022'!K72 -> 0 | E33: - | F33: - | G33: =D33 -> 0 | H33: 3333.33 | I33: 0.75 | J33: =H33*I33 -> 2499.9975 | K33: =IF((I33*G33)>J33,J33,G33*I33) -> 0
A35: ="Total des dépenses engagées pour la période du " & TEXT(C4,"JJ/MM/AA") & " au " & TEXT(C5,"JJ/MM/AA") -> Total des dépenses engagées pour la période du 00/01/00 au 00/01/00 | D35: =SUM(D29:D33) -> 0 | E35: =SUM(E29:E32) -> 0 | F35: =SUM(F29:F32) -> 0 | G35: =SUM(G29:G33) -> 0
A37: ="Total des co-financements apportés par les CEE du " & TEXT(C4,"JJ/MM/AA") & " au " & TEXT(C5,"JJ/MM/AA") -> Total des co-financements apportés par les CEE du 00/01/00 au 00/01/00 | K37: =(IF(E6>H7,IF((SUM(K29:K33))>H7,H7,(SUM(K29:K33))),IF((SUM(K29:K33))>E6,E6,(SUM(K29:K33))))) -> 0

Sheet Depenses 2023
A1: =" Recapitulatif des depenses " & B3 & " - " & H3 -> Recapitulatif des depenses - 2023
A2: Merci de detailler l'ensemble des frais et du temps pour les actions d'animation, la realisation des diagnostics sociotechniques et soutiens renforces, l'evaluation ainsi que les formations et l'accompagnement methodologique.
A3: Collectivite | G3: Annee | H3: 2023 | I3: Periode | J3: du (JJ/MM/AAAA):
J4: au (JJ/MM/AAAA):
A5: 1. Coordination du dispositif et animation territoriale | K5: =K7+K13 -> 0
A6: Depenses d'exploitation (Frais directs) | B6: detailler depense si besoin | E6: Date de pièce | F6: N° et/ou type de pièce | H6: Date de règlement | I6: Mode de règlement | J6: Montant (€TTC)
K7: =SUM(J7:J11) -> 0
A12: Depenses de personnel (Moyens humains) | B12: detailler depense si besoin | C12: Type de coût | D12: Intitule de poste | G12: Prenom NOM | I12: Temps passe (jours) | J12: Coût journalier (€)
K13: =SUMPRODUCT(I13:I22,J13:J22) -> 0
A23: 2. Diagnostics socio-techniques et soutien renforce | K23: =K25+K36 -> 0
A24: Depenses d'exploitation (Frais directs) | B24: detailler depense si besoin (notamment indemnite/km et nombre de km pour les deplacements) | E24: Date de pièce | F24: N° et/ou type de pièce | H24: Date de règlement | I24: Mode de règlement | J24: Montant (€TTC)
K25: =SUM(J25:J34) -> 0
A35: Depenses de personnel (Moyens humains) | B35: detailler depense si besoin | C35: Type de coût | D35: Intitule de poste | G35: Prenom NOM | I35: Temps passe (jours) | J35: Coût journalier (€)
K36: =SUMPRODUCT(I36:I45,J36:J45) -> 0
A46: 3. Evaluation | K46: =K48+K54 -> 0
A47: Depenses d'exploitation (Frais directs) | B47: detailler depense si besoin | E47: Date de pièce | F47: N° et/ou type de pièce | H47: Date de règlement | I47: Mode de règlement | J47: Montant (€TTC)
K48: =SUM(J48:J52) -> 0
A53: Depenses de personnel (Moyens humains) | B53: detailler depense si besoin | C53: Type de coût | D53: Intitule de poste | G53: Prenom NOM | I53: Temps passe (jours) | J53: Coût journalier (€)
K54: =SUMPRODUCT(I54:I57,J54:J57) -> 0
A58: 4. Formations et accompagnement methodologique | K58: =K59+K71 -> 0
A59: 4.1 Formations | K59: =K61+K67 -> 0
A60: Depenses d'exploitation (Frais directs) | B60: detailler depense si besoin | E60: Date de pièce | F60: N° et/ou type de pièce | H60: Date de règlement | I60: Mode de règlement | J60: Montant (€TTC)
K61: =SUM(J61:J65) -> 0
A66: Depenses de personnel (Moyens humains) | B66: detailler depense si besoin | C66: Type de coût | D66: Intitule de poste | G66: Prenom NOM | I66: Temps passe (jours) | J66: Coût journalier (€)
K67: =SUMPRODUCT(I67:I70,J67:J70) -> 0
A71: 4.2 Accompagnement methodologique | K71: =K73 -> 0
A72: Depenses d'exploitation (Frais directs) | B72: detailler depense si besoin | E72: Date de pièce | F72: N° et/ou type de pièce | H72: Date de règlement | I72: Mode de règlement | J72: Montant (€TTC)
K73: =SUM(J73:J77) -> 0
A78: Total des depenses de personnel (TTC) | K78: =K13+K36+K54+K67 -> 0
A79: Coûts connexes | B79: 0.25 | K79: =B79*(K78) -> 0
A80: Total des depenses realisees par la collectivite (TTC) | K80: =K5+K23+K46+K58 -> 0
A81: Total des depenses eligibles à un co-financement par le programme Slime (TTC) | K81: =K5+K23+K46+K58+K79 -> 0

Sheet Attestation 2023
A1: =" Attestation " & 'Depenses 2023'!D3 & " " & 'Depenses 2023'!H3 -> Attestation 2023
A2: Informations générales
A3: Nom de la collectivité | C3: ='Depenses 2023'!B3 -> 0 | H3: Année | K3: ='Depenses 2023'!H3 -> 2023 | M3: Attestation du.de la responsable dûment habilité.e pour engager légalement la structure | W3: 0
A4: Période | B4: du : | C4: ='Depenses 2023'!K3 -> 00:00:00
B5: au : | C5: ='Depenses 2023'!K4 -> 00:00:00 | H5: 1ère année Slime | K5: NON | M5: Je, soussigné.e [élu.e en charge du dispositif], déclare que la totalité des actions et les dépenses reportées dans la synthèse ci-contre et détaillées dans l'onglet "Dépenses" ont été réalisées par [Nom de la structure] dans le cadre du programme Slime+ sur la période
A6: Type de territoire | B6: Conseil départemental | C6: Plafond maximum de co-financement CEE | E6: =IF($B$6="Conseil Régional",1900000,0)+IF($B$6="Conseil départemental",800000,0)+IF($B$6="Métropole",800000,0)+IF($B$6="Autre type",400000,0) -> 800000 | H6: Dispositif pluriannuel | K6: OUI
A7: ="Montant de co-financement maximal CEE " & 'Depenses 2023'!H3 -> Montant de co-financement maximal CEE 2023
A8: ="Montant de l'avance " & 'Depenses 2023'!H3 -> Montant de l'avance 2023
A9: ="Forfait " & K3 -> Forfait 2023 | M9: ="du " & TEXT(C4,"JJ/MM/AA") & " au " & TEXT(C5,"JJ/MM/AA") -> du 00/01/00 au 00/01/00
A10: Base | H10: Prévisionnel | I10: 300 | J10: Réalisé | K10: 300 | M10: Fait le: A: | R10: Nom, signature, cachet
A11: DST réalisé en deux visites ou en binôme | H11: NON | I11: =IF(H11="OUI",100,0) -> 0 | J11: NON | K11: =IF(J11="OUI",100,0) -> 0
A12: Profil "expert" | H12: NON | I12: 0 | J12: NON | K12: =IF(J12="OUI",100,0) -> 0
A13: Soutien renforcé (au-dela des 20% minimum) | H13: NON | I13: =IF(H13<>"NON",(MID(H13,3,2)*50),0) -> 0 | J13: NON | K13: =IF(J13<>"NON",(MID(J13,3,2)*50),0) -> 0
A14: Forte articulation avec des dispositifs de type FSATME | H14: NON | I14: =IF(H14="OUI",50,0) -> 0 | J14: NON | K14: =IF(J14="OUI",50,0) -> 0
A15: Suivi N+1 | H15: NON | I15: =IF(H15="OUI",50,0) -> 0 | J15: NON | K15: =IF(J15="OUI",50,0) -> 0 | M15: Visa du.de la comptable public.que certifiant le paiement des dépenses d'exploitation figurant dans l'onglet "Dépenses" de l'année correspondante au vu des justificatifs produits (à l'exclusion des frais kilométriques non-attestables par le comptable public)
A16: Réalisation d'une médiation | H16: NON | I16: =IF(H16="OUI",100,0) -> 0 | J16: NON | K16: =IF(J16="OUI",100,0) -> 0
A17: TOTAL | H17: =SUM(I10:I16) -> 300 | J17: =SUM(K10:K16) -> 300
M18: Fait le: A: | R18: Nom, signature, cachet
A19: si la collectivité réalise une pré-visite à distance et une visite physique | I19: =IF(J11="NON",J17+100,J17) -> 400
A20: si la collectivité n'a pu réaliser qu'une viiste à distance | I20: =IF(J11="NON",J17,J17-100) -> 300
A21: Information relative à la pandémie Covid-19
A22: ="En " & K3 & " la collectivité a réalisé des visites à distance:" -> En 2023 la collectivité a réalisé des visites à distance: | J22: NON
A24: ="Nombre de ménages accompagnés - valorisables" -> Nombre de ménages accompagnés - valorisables | M24: Conformément aux instructions précédemment transmises, la collectivité est tenue de transmettre au CLER, en même temps que la présente attestation dument complétée et signée, une copie des pièces justificatives (facture, convention, note de frais, etc.) de chaque dépense d'exploitation dont le montant dépasse:
A25: ="Nombre de ménages accompagnés - total" -> Nombre de ménages accompagnés - total
A26: dont ménages ayant reçu une pré-visite à distance et une visite physique | M26: =W3 -> 0
A27: dont ménages ayant reçu uniquement une visite à distance
A28: ="Activités " & 'Depenses 2023'!H3 -> Activités 2023 | B28: Actions | D28: Frais directs | E28: Moyens humains | F28: Coûts connexes | G28: Total | H28: Assiette dépenses éligibles | I28: Taux de co-financement CEE | J28: Plafonds de co-financement CEE | K28: Total de co-financement CEE | M28: Signature du.de la responsable dûment habilité.e (DGA, DGS, responsable RH) certifiant l'exactitude du temps déclaré sur le projet pour chacun des agents / pour l’ensemble des agents déclarés dans les dépenses de personnel
B29: 1. Animation territoriale | D29: =IF($K$6="OUI",'Depenses 2023'!K7,0) -> 0 | E29: =IF($K$6="OUI",'Depenses 2023'!K13,0) -> 0 | F29: =E29*0.25 -> 0 | G29: =D29+E29+F29 -> 0 | H29: =IF($K$5="OUI",50000,25000) -> 25000 | I29: =IF($K$3=2022,70%,0)+IF($K$3=2023,70%,0)+IF($K$3=2024,60%,0)+IF($K$3=2025,50%,0) -> 0.7 | J29: =H29*I29 -> 17500 | K29: =IF(G29>H29,J29,G29*I29) -> 0
B30: 2. Diagnostics socio-techniques et soutien renforcé | D30: ='Depenses 2023'!K25 -> 0 | E30: ='Depenses 2023'!K36 -> 0 | F30: =E30*0.25 -> 0 | G30: =D30+E30+F30 -> 0 | H30: =G30 -> 0 | I30: =IF($K$3=2022,70%,0)+IF($K$3=2023,70%,0)+IF($K$3=2024,60%,0)+IF($K$3=2025,50%,0) -> 0.7 | J30: =IF(J22="OUI",(I19*H26+I20*H27+(H24-H26-H27)*J17),J17*H24) -> 0 | K30: =IF(J30>(I30*G30),(I30*G30),J30) -> 0 | M30: Fait le: A: | R30: Nom, signature, cachet
B31: 3. Evaluation | D31: ='Depenses 2023'!K48 -> 0 | E31: ='Depenses 2023'!K54 -> 0 | F31: =E31*0.25 -> 0 | G31: =D31+E31+F31 -> 0 | H31: 20000 | I31: 0.7 | J31: =H31*I31 -> 14000 | K31: =IF((G31*I31)>J31,J31,G31*I31) -> 0
B32: 4.1 Formations | D32: ='Depenses 2023'!K61 -> 0 | E32: ='Depenses 2023'!K67 -> 0 | F32: =E32*0.25 -> 0 | G32: =D32+E32+F32 -> 0 | H32: =G32 -> 0 | I32: 0.75 | J32: N/A | K32: =I32*G32 -> 0
B33: 4.2 Accompagnement méthodologique | D33: ='Depenses 2023'!K73 -> 0 | E33: - | F33: - | G33: =D33 -> 0 | H33: 3333.33 | I33: 0.75 | J33: =H33*I33 -> 2499.9975 | K33: =IF((I33*G33)>J33,J33,G33*I33) -> 0
A35: ="Total des dépenses engagées pour la période du " & TEXT(C4,"JJ/MM/AA") & " au " & TEXT(C5,"JJ/MM/AA") -> Total des dépenses engagées pour la période du 00/01/00 au 00/01/00 | D35: =SUM(D29:D33) -> 0 | E35: =SUM(E29:E32) -> 0 | F35: =SUM(F29:F32) -> 0 | G35: =SUM(G29:G33) -> 0
A37: ="Total des co-financements apportés par les CEE du " & TEXT(C4,"JJ/MM/AA") & " au " & TEXT(C5,"JJ/MM/AA") -> Total des co-financements apportés par les CEE du 00/01/00 au 00/01/00 | K37: =(IF(E6>H7,IF((SUM(K29:K33))>H7,H7,(SUM(K29:K33))),IF((SUM(K29:K33))>E6,E6,(SUM(K29:K33))))) -> 0

Sheet Depenses 2024
A1: =" Recapitulatif des depenses " & B3 & " - " & H3 -> Recapitulatif des depenses - 2024
A2: Merci de detailler l'ensemble des frais et du temps pour les actions d'animation, la realisation des diagnostics sociotechniques et soutiens renforces, l'evaluation ainsi que les formations et l'accompagnement methodologique.
A3: Collectivite | G3: Annee | H3: 2024 | I3: Periode | J3: du (JJ/MM/AAAA):
J4: au (JJ/MM/AAAA):
A5: 1. Coordination du dispositif et animation territoriale | K5: =K7+K13 -> 0
A6: Depenses d'exploitation (Frais directs) | B6: detailler depense si besoin | E6: Date de pièce | F6: N° et/ou type de pièce | H6: Date de règlement | I6: Mode de règlement | J6: Montant (€TTC)
K7: =SUM(J7:J11) -> 0
A12: Depenses de personnel (Moyens humains) | B12: detailler depense si besoin | C12: Type de coût | D12: Intitule de poste | G12: Prenom NOM | I12: Temps passe (jours) | J12: Coût journalier (€)
K13: =SUMPRODUCT(I13:I22,J13:J22) -> 0
A23: 2. Diagnostics socio-techniques et soutien renforce | K23: =K25+K35 -> 0
A24: Depenses d'exploitation (Frais directs) | B24: detailler depense si besoin (notamment indemnite/km et nombre de km pour les deplacements) | E24: Date de pièce | F24: N° et/ou type de pièce | H24: Date de règlement | I24: Mode de règlement | J24: Montant (€TTC)
K25: =SUM(J25:J33) -> 0
A34: Depenses de personnel (Moyens humains) | B34: detailler depense si besoin | C34: Type de coût | D34: Intitule de poste | G34: Prenom NOM | I34: Temps passe (jours) | J34: Coût journalier (€)
K35: =SUMPRODUCT(I35:I44,J35:J44) -> 0
A45: 3. Evaluation | K45: =K47+K53 -> 0
A46: Depenses d'exploitation (Frais directs) | B46: detailler depense si besoin | E46: Date de pièce | F46: N° et/ou type de pièce | H46: Date de règlement | I46: Mode de règlement | J46: Montant (€TTC)
K47: =SUM(J47:J51) -> 0
A52: Depenses de personnel (Moyens humains) | B52: detailler depense si besoin | C52: Type de coût | D52: Intitule de poste | G52: Prenom NOM | I52: Temps passe (jours) | J52: Coût journalier (€)
K53: =SUMPRODUCT(I53:I56,J53:J56) -> 0
A57: 4. Formations et accompagnement methodologique | K57: =K58+K70 -> 0
A58: 4.1 Formations | K58: =K60+K66 -> 0
A59: Depenses d'exploitation (Frais directs) | B59: detailler depense si besoin | E59: Date de pièce | F59: N° et/ou type de pièce | H59: Date de règlement | I59: Mode de règlement | J59: Montant (€TTC)
K60: =SUM(J60:J64) -> 0
A65: Depenses de personnel (Moyens humains) | B65: detailler depense si besoin | C65: Type de coût | D65: Intitule de poste | G65: Prenom NOM | I65: Temps passe (jours) | J65: Coût journalier (€)
K66: =SUMPRODUCT(I66:I69,J66:J69) -> 0
A70: 4.2 Accompagnement methodologique | K70: =K72 -> 0
A71: Depenses d'exploitation (Frais directs) | B71: detailler depense si besoin | E71: Date de pièce | F71: N° et/ou type de pièce | H71: Date de règlement | I71: Mode de règlement | J71: Montant (€TTC)
K72: =SUM(J72:J76) -> 0
A77: Total des depenses de personnel (TTC) | K77: =K13+K35+K53+K66 -> 0
A78: Coûts connexes | B78: 0.25 | K78: =B78*(K77) -> 0
A79: Total des depenses realisees par la collectivite (TTC) | K79: =K5+K23+K45+K57 -> 0
A80: Total des depenses eligibles à un co-financement par le programme Slime (TTC) | K80: =K5+K23+K45+K57+K78 -> 0

Sheet Attestation 2024
A1: =" Attestation " & 'Depenses 2024'!D3 & " " & 'Depenses 2024'!H3 -> Attestation 2024
A2: Informations générales | M2: IBAN
A3: Nom de la collectivité | C3: ='Depenses 2024'!B3 -> 0 | H3: Année | K3: ='Depenses 2024'!H3 -> 2024 | W3: 0
A4: Période | B4: du : | C4: ='Depenses 2024'!K3 -> 00:00:00 | M4: Attestation du.de la responsable dûment habilité.e pour engager légalement la structure
B5: au : | C5: ='Depenses 2024'!K4 -> 00:00:00 | H5: 1ère année Slime | K5: NON | M5: Je, soussigné.e [élu.e en charge du dispositif], déclare que la totalité des actions et les dépenses reportées dans la synthèse ci-contre et détaillées dans l'onglet "Dépenses" ont été réalisées par [Nom de la structure] dans le cadre du programme Slime+ sur la période
A6: Type de territoire | B6: Conseil départemental | C6: Plafond maximum de co-financement CEE | E6: =IF($B$6="Conseil Régional",1900000,0)+IF($B$6="Conseil départemental",800000,0)+IF($B$6="Métropole",800000,0)+IF($B$6="Autre type",400000,0) -> 800000 | H6: Dispositif pluriannuel | K6: OUI
A7: ="Montant de co-financement maximal CEE " & 'Depenses 2024'!H3 -> Montant de co-financement maximal CEE 2024
A8: ="Montant de l'avance " & 'Depenses 2024'!H3 -> Montant de l'avance 2024
A9: ="Forfait " & K3 -> Forfait 2024 | M9: ="du " & TEXT(C4,"JJ/MM/AA") & " au " & TEXT(C5,"JJ/MM/AA") -> du 00/01/00 au 00/01/00
A10: Base | H10: Prévisionnel | I10: 300 | J10: Réalisé | K10: 300 | M10: Fait le: A: | R10: Nom, signature, cachet
A11: DST réalisé en deux visites ou en binôme | H11: NON | I11: =IF(H11="OUI",100,0) -> 0 | J11: NON | K11: =IF(J11="OUI",100,0) -> 0
A12: Profil "expert" | H12: NON | I12: 0 | J12: NON | K12: =IF(J12="OUI",100,0) -> 0
A13: Soutien renforcé (au-dela des 20% minimum) | H13: NON | I13: =IF(H13<>"NON",(MID(H13,3,2)*50),0) -> 0 | J13: NON | K13: =IF(J13<>"NON",(MID(J13,3,2)*50),0) -> 0
A14: Forte articulation avec des dispositifs de type FSATME | H14: NON | I14: =IF(H14="OUI",50,0) -> 0 | J14: NON | K14: =IF(J14="OUI",50,0) -> 0
A15: Suivi N+1 | H15: NON | I15: =IF(H15="OUI",50,0) -> 0 | J15: NON | K15: =IF(J15="OUI",50,0) -> 0 | M15: Visa du.de la comptable public.que certifiant le paiement des dépenses d'exploitation figurant dans l'onglet "Dépenses" de l'année correspondante au vu des justificatifs produits (à l'exclusion des frais kilométriques non-attestables par le comptable public)
A16: Réalisation d'une médiation | H16: NON | I16: =IF(H16="OUI",100,0) -> 0 | J16: NON | K16: =IF(J16="OUI",100,0) -> 0
A17: TOTAL | H17: =SUM(I10:I16) -> 300 | J17: =SUM(K10:K16) -> 300
M18: Fait le: A: | R18: Nom, signature, cachet
A19: si la collectivité réalise une pré-visite à distance et une visite physique | I19: =IF(J11="NON",J17+100,J17) -> 400
A20: si la collectivité n'a pu réaliser qu'une viiste à distance | I20: =IF(J11="NON",J17,J17-100) -> 300
A21: Information relative à la pandémie Covid-19
A22: ="En " & K3 & " la collectivité a réalisé des visites à distance:" -> En 2024 la collectivité a réalisé des visites à distance: | J22: NON
A24: ="Nombre de ménages accompagnés - valorisables" -> Nombre de ménages accompagnés - valorisables | M24: Conformément aux instructions précédemment transmises, la collectivité est tenue de transmettre au CLER, en même temps que la présente attestation dument complétée et signée, une copie des pièces justificatives (facture, convention, note de frais, etc.) de chaque dépense d'exploitation dont le montant dépasse:
A25: ="Nombre de ménages accompagnés - total" -> Nombre de ménages accompagnés - total
A26: dont ménages ayant reçu une pré-visite à distance et une visite physique | M26: =W3 -> 0
A27: dont ménages ayant reçu uniquement une visite à distance
A28: ="Activités " & 'Depenses 2024'!H3 -> Activités 2024 | B28: Actions | D28: Frais directs | E28: Moyens humains | F28: Coûts connexes | G28: Total | H28: Assiette dépenses éligibles | I28: Taux de co-financement CEE | J28: Plafonds de co-financement CEE | K28: Total de co-financement CEE | M28: Signature du.de la responsable dûment habilité.e (DGA, DGS, responsable RH) certifiant l'exactitude du temps déclaré sur le projet pour chacun des agents / pour l’ensemble des agents déclarés dans les dépenses de personnel
B29: 1. Animation territoriale | D29: =IF($K$6="OUI",'Depenses 2024'!K7,0) -> 0 | E29: =IF($K$6="OUI",'Depenses 2024'!K13,0) -> 0 | F29: =E29*0.25 -> 0 | G29: =D29+E29+F29 -> 0 | H29: =IF($K$5="OUI",50000,25000) -> 25000 | I29: =IF($K$3=2022,70%,0)+IF($K$3=2023,70%,0)+IF($K$3=2024,60%,0)+IF($K$3=2025,50%,0) -> 0.6 | J29: =H29*I29 -> 15000 | K29: =IF(G29>H29,J29,G29*I29) -> 0
B30: 2. Diagnostics socio-techniques et soutien renforcé | D30: ='Depenses 2024'!K25 -> 0 | E30: ='Depenses 2024'!K35 -> 0 | F30: =E30*0.25 -> 0 | G30: =D30+E30+F30 -> 0 | H30: =G30 -> 0 | I30: =IF($K$3=2022,70%,0)+IF($K$3=2023,70%,0)+IF($K$3=2024,60%,0)+IF($K$3=2025,50%,0) -> 0.6 | J30: =IF(J22="OUI",(I19*H26+I20*H27+(H24-H26-H27)*J17),J17*H24) -> 0 | K30: =IF(J30>(I30*G30),(I30*G30),J30) -> 0 | M30: Fait le: A: | R30: Nom, signature, cachet
B31: 3. Evaluation | D31: ='Depenses 2024'!K47 -> 0 | E31: ='Depenses 2024'!K53 -> 0 | F31: =E31*0.25 -> 0 | G31: =D31+E31+F31 -> 0 | H31: 20000 | I31: 0.6 | J31: =H31*I31 -> 12000 | K31: =IF((G31*I31)>J31,J31,G31*I31) -> 0
B32: 4.1 Formations | D32: ='Depenses 2024'!K60 -> 0 | E32: ='Depenses 2024'!K66 -> 0 | F32: =E32*0.25 -> 0 | G32: =D32+E32+F32 -> 0 | H32: =G32 -> 0 | I32: 0.75 | J32: N/A | K32: =I32*G32 -> 0
B33: 4.2 Accompagnement méthodologique | D33: ='Depenses 2024'!K72 -> 0 | E33: - | F33: - | G33: =D33 -> 0 | H33: 3333.33 | I33: 0.75 | J33: =H33*I33 -> 2499.9975 | K33: =IF((I33*G33)>J33,J33,G33*I33) -> 0
A35: ="Total des dépenses engagées pour la période du " & TEXT(C4,"JJ/MM/AA") & " au " & TEXT(C5,"JJ/MM/AA") -> Total des dépenses engagées pour la période du 00/01/00 au 00/01/00 | D35: =SUM(D29:D33) -> 0 | E35: =SUM(E29:E32) -> 0 | F35: =SUM(F29:F32) -> 0 | G35: =SUM(G29:G33) -> 0
A37: ="Total des co-financements apportés par les CEE du " & TEXT(C4,"JJ/MM/AA") & " au " & TEXT(C5,"JJ/MM/AA") -> Total des co-financements apportés par les CEE du 00/01/00 au 00/01/00 | K37: =(IF(E6>H7,IF((SUM(K29:K33))>H7,H7,(SUM(K29:K33))),IF((SUM(K29:K33))>E6,E6,(SUM(K29:K33))))) -> 0

Sheet Depenses 2025
A1: =" Recapitulatif des depenses " & B3 & " - " & H3 -> Recapitulatif des depenses - 2025
A2: Merci de detailler l'ensemble des frais et du temps pour les actions d'animation, la realisation des diagnostics sociotechniques et soutiens renforces, l'evaluation ainsi que les formations et l'accompagnement methodologique.
A3: Collectivite | G3: Annee | H3: 2025 | I3: Periode | J3: du (JJ/MM/AAAA):
J4: au (JJ/MM/AAAA):
A5: 1. Coordination du dispositif et animation territoriale | K5: =K7+K13 -> 0
A6: Depenses d'exploitation (Frais directs) | B6: detailler depense si besoin | E6: Date de pièce | F6: N° et/ou type de pièce | H6: Date de règlement | I6: Mode de règlement | J6: Montant (€TTC)
K7: =SUM(J7:J11) -> 0
A12: Depenses de personnel (Moyens humains) | B12: detailler depense si besoin | C12: Type de coût | D12: Intitule de poste | G12: Prenom NOM | I12: Temps passe (jours) | J12: Coût journalier (€)
K13: =SUMPRODUCT(I13:I22,J13:J22) -> 0
A23: 2. Diagnostics socio-techniques et soutien renforce | K23: =K25+K35 -> 0
A24: Depenses d'exploitation (Frais directs) | B24: detailler depense si besoin (notamment indemnite/km et nombre de km pour les deplacements) | E24: Date de pièce | F24: N° et/ou type de pièce | H24: Date de règlement | I24: Mode de règlement | J24: Montant (€TTC)
K25: =SUM(J25:J33) -> 0
A34: Depenses de personnel (Moyens humains) | B34: detailler depense si besoin | C34: Type de coût | D34: Intitule de poste | G34: Prenom NOM | I34: Temps passe (jours) | J34: Coût journalier (€)
K35: =SUMPRODUCT(I35:I44,J35:J44) -> 0
A45: 3. Evaluation | K45: =K47+K53 -> 0
A46: Depenses d'exploitation (Frais directs) | B46: detailler depense si besoin | E46: Date de pièce | F46: N° et/ou type de pièce | H46: Date de règlement | I46: Mode de règlement | J46: Montant (€TTC)
K47: =SUM(J47:J51) -> 0
A52: Depenses de personnel (Moyens humains) | B52: detailler depense si besoin | C52: Type de coût | D52: Intitule de poste | G52: Prenom NOM | I52: Temps passe (jours) | J52: Coût journalier (€)
K53: =SUMPRODUCT(I53:I56,J53:J56) -> 0
A57: 4. Formations et accompagnement methodologique | K57: =K58+K70 -> 0
A58: 4.1 Formations | K58: =K60+K66 -> 0
A59: Depenses d'exploitation (Frais directs) | B59: detailler depense si besoin | E59: Date de pièce | F59: N° et/ou type de pièce | H59: Date de règlement | I59: Mode de règlement | J59: Montant (€TTC)
K60: =SUM(J60:J64) -> 0
A65: Depenses de personnel (Moyens humains) | B65: detailler depense si besoin | C65: Type de coût | D65: Intitule de poste | G65: Prenom NOM | I65: Temps passe (jours) | J65: Coût journalier (€)
K66: =SUMPRODUCT(I66:I69,J66:J69) -> 0
A70: 4.2 Accompagnement methodologique | K70: =K72 -> 0
A71: Depenses d'exploitation (Frais directs) | B71: detailler depense si besoin | E71: Date de pièce | F71: N° et/ou type de pièce | H71: Date de règlement | I71: Mode de règlement | J71: Montant (€TTC)
K72: =SUM(J72:J76) -> 0
A77: Total des depenses de personnel (TTC) | K77: =K13+K35+K53+K66 -> 0
A78: Coûts connexes | B78: 0.25 | K78: =B78*(K77) -> 0
A79: Total des depenses realisees par la collectivite (TTC) | K79: =K5+K23+K45+K57 -> 0
A80: Total des depenses eligibles à un co-financement par le programme Slime (TTC) | K80: =K5+K23+K45+K57+K78 -> 0

Sheet Attestation 2025
A1: =" Attestation " & 'Depenses 2025'!D3 & " " & 'Depenses 2025'!H3 -> Attestation 2025
A2: Informations générales | M2: IBAN
A3: Nom de la collectivité | C3: ='Depenses 2025'!B3 -> 0 | H3: Année | K3: ='Depenses 2025'!H3 -> 2025 | W3: 0
A4: Période | B4: du : | C4: ='Depenses 2025'!K3 -> 00:00:00 | M4: Attestation du.de la responsable dûment habilité.e pour engager légalement la structure
B5: au : | C5: ='Depenses 2025'!K4 -> 00:00:00 | H5: 1ère année Slime | K5: NON | M5: Je, soussigné.e [élu.e en charge du dispositif], déclare que la totalité des actions et les dépenses reportées dans la synthèse ci-contre et détaillées dans l'onglet "Dépenses" ont été réalisées par [Nom de la structure] dans le cadre du programme Slime+ sur la période
A6: Type de territoire | B6: Conseil départemental | C6: Plafond maximum de co-financement CEE | E6: =IF($B$6="Conseil Régional",1900000,0)+IF($B$6="Conseil départemental",800000,0)+IF($B$6="Métropole",800000,0)+IF($B$6="Autre type",400000,0) -> 800000 | H6: Dispositif pluriannuel | K6: OUI
A7: ="Montant de co-financement maximal CEE " & 'Depenses 2025'!H3 -> Montant de co-financement maximal CEE 2025
A8: ="Montant de l'avance " & 'Depenses 2025'!H3 -> Montant de l'avance 2025
A9: ="Forfait " & K3 -> Forfait 2025 | M9: ="du " & TEXT(C4,"JJ/MM/AA") & " au " & TEXT(C5,"JJ/MM/AA") -> du 00/01/00 au 00/01/00
A10: Base | H10: Prévisionnel | I10: 300 | J10: Réalisé | K10: 300 | M10: Fait le: A: | R10: Nom, signature, cachet
A11: DST réalisé en deux visites ou en binôme | H11: NON | I11: =IF(H11="OUI",100,0) -> 0 | J11: NON | K11: =IF(J11="OUI",100,0) -> 0
A12: Profil "expert" | H12: NON | I12: 0 | J12: NON | K12: =IF(J12="OUI",100,0) -> 0
A13: Soutien renforcé (au-dela des 20% minimum) | H13: NON | I13: =IF(H13<>"NON",(MID(H13,3,2)*50),0) -> 0 | J13: NON | K13: =IF(J13<>"NON",(MID(J13,3,2)*50),0) -> 0
A14: Forte articulation avec des dispositifs de type FSATME | H14: NON | I14: =IF(H14="OUI",50,0) -> 0 | J14: NON | K14: =IF(J14="OUI",50,0) -> 0
A15: Suivi N+1 | H15: NON | I15: =IF(H15="OUI",50,0) -> 0 | J15: NON | K15: =IF(J15="OUI",50,0) -> 0 | M15: Visa du.de la comptable public.que certifiant le paiement des dépenses d'exploitation figurant dans l'onglet "Dépenses" de l'année correspondante au vu des justificatifs produits (à l'exclusion des frais kilométriques non-attestables par le comptable public)
A16: Réalisation d'une médiation | H16: NON | I16: =IF(H16="OUI",100,0) -> 0 | J16: NON | K16: =IF(J16="OUI",100,0) -> 0
A17: TOTAL | H17: =SUM(I10:I16) -> 300 | J17: =SUM(K10:K16) -> 300
M18: Fait le: A: | R18: Nom, signature, cachet
A19: si la collectivité réalise une pré-visite à distance et une visite physique | I19: =IF(J11="NON",J17+100,J17) -> 400
A20: si la collectivité n'a pu réaliser qu'une viiste à distance | I20: =IF(J11="NON",J17,J17-100) -> 300
A21: Information relative à la pandémie Covid-19
A22: ="En " & K3 & " la collectivité a réalisé des visites à distance:" -> En 2025 la collectivité a réalisé des visites à distance: | J22: NON
A24: ="Nombre de ménages accompagnés - valorisables" -> Nombre de ménages accompagnés - valorisables | M24: Conformément aux instructions précédemment transmises, la collectivité est tenue de transmettre au CLER, en même temps que la présente attestation dument complétée et signée, une copie des pièces justificatives (facture, convention, note de frais, etc.) de chaque dépense d'exploitation dont le montant dépasse:
A25: ="Nombre de ménages accompagnés - total" -> Nombre de ménages accompagnés - total
A26: dont ménages ayant reçu une pré-visite à distance et une visite physique | M26: =W3 -> 0
A27: dont ménages ayant reçu uniquement une visite à distance
A28: ="Activités " & 'Depenses 2025'!H3 -> Activités 2025 | B28: Actions | D28: Frais directs | E28: Moyens humains | F28: Coûts connexes | G28: Total | H28: Assiette dépenses éligibles | I28: Taux de co-financement CEE | J28: Plafonds de co-financement CEE | K28: Total de co-financement CEE | M28: Signature du.de la responsable dûment habilité.e (DGA, DGS, responsable RH) certifiant l'exactitude du temps déclaré sur le projet pour chacun des agents / pour l’ensemble des agents déclarés dans les dépenses de personnel
B29: 1. Animation territoriale | D29: =IF($K$6="OUI",'Depenses 2025'!K7,0) -> 0 | E29: =IF($K$6="OUI",'Depenses 2025'!K13,0) -> 0 | F29: =E29*0.25 -> 0 | G29: =D29+E29+F29 -> 0 | H29: =IF($K$5="OUI",50000,25000) -> 25000 | I29: =IF($K$3=2022,70%,0)+IF($K$3=2023,70%,0)+IF($K$3=2024,60%,0)+IF($K$3=2025,60%,0) -> 0.6 | J29: =H29*I29 -> 15000 | K29: =IF(G29>H29,J29,G29*I29) -> 0
B30: 2. Diagnostics socio-techniques et soutien renforcé | D30: ='Depenses 2025'!K25 -> 0 | E30: ='Depenses 2025'!K35 -> 0 | F30: =E30*0.25 -> 0 | G30: =D30+E30+F30 -> 0 | H30: =G30 -> 0 | I30: =IF($K$3=2022,70%,0)+IF($K$3=2023,70%,0)+IF($K$3=2024,60%,0)+IF($K$3=2025,60%,0) -> 0.6 | J30: =IF(J22="OUI",(I19*H26+I20*H27+(H24-H26-H27)*J17),J17*H24) -> 0 | K30: =IF(J30>(I30*G30),(I30*G30),J30) -> 0 | M30: Fait le: A: | R30: Nom, signature, cachet
B31: 3. Evaluation | D31: ='Depenses 2025'!K47 -> 0 | E31: ='Depenses 2025'!K53 -> 0 | F31: =E31*0.25 -> 0 | G31: =D31+E31+F31 -> 0 | H31: 20000 | I31: =IF($K$3=2022,70%,0)+IF($K$3=2023,70%,0)+IF($K$3=2024,60%,0)+IF($K$3=2025,60%,0) -> 0.6 | J31: =H31*I31 -> 12000 | K31: =IF((G31*I31)>J31,J31,G31*I31) -> 0
B32: 4.1 Formations | D32: ='Depenses 2025'!K60 -> 0 | E32: ='Depenses 2025'!K66 -> 0 | F32: =E32*0.25 -> 0 | G32: =D32+E32+F32 -> 0 | H32: =G32 -> 0 | I32: 0.75 | J32: N/A | K32: =I32*G32 -> 0
B33: 4.2 Accompagnement méthodologique | D33: ='Depenses 2025'!K72 -> 0 | E33: - | F33: - | G33: =D33 -> 0 | H33: 3333.33 | I33: 0.75 | J33: =H33*I33 -> 2499.9975 | K33: =IF((I33*G33)>J33,J33,G33*I33) -> 0
A35: ="Total des dépenses engagées pour la période du " & TEXT(C4,"JJ/MM/AA") & " au " & TEXT(C5,"JJ/MM/AA") -> Total des dépenses engagées pour la période du 00/01/00 au 00/01/00 | D35: =SUM(D29:D33) -> 0 | E35: =SUM(E29:E32) -> 0 | F35: =SUM(F29:F32) -> 0 | G35: =SUM(G29:G33) -> 0
A37: ="Total des co-financements apportés par les CEE du " & TEXT(C4,"JJ/MM/AA") & " au " & TEXT(C5,"JJ/MM/AA") -> Total des co-financements apportés par les CEE du 00/01/00 au 00/01/00 | K37: =(IF(E6>H7,IF((SUM(K29:K33))>H7,H7,(SUM(K29:K33))),IF((SUM(K29:K33))>E6,E6,(SUM(K29:K33))))) -> 0

Sheet Synthèse
A1: =" Synthèse " & B2 -> Synthèse 0
A2: Collectivité | B2: ='Depenses 2022'!D3 -> 0
B5: 2022 | C5: 2023 | D5: 2024 | E5: 2025 | F5: Total
A6: Forfait | B6: ='Attestation 2022'!$J$17 -> 300 | C6: ='Attestation 2023'!$J$17 -> 300 | D6: ='Attestation 2024'!$J$17 -> 300 | E6: ='Attestation 2025'!$J$17 -> 300
A7: Nombre de ménages accompagnés | B7: ='Attestation 2022'!$H$24 -> 0 | C7: ='Attestation 2023'!$H$24 -> 0 | D7: ='Attestation 2024'!$H$24 -> 0 | E7: ='Attestation 2025'!$H$24 -> 0 | F7: =SUM(B7:E7) -> 0
A8: Dépenses prévisionnelles de la collectivité pour la période | B8: ='Attestation 2022'!$H$8 -> 0 | C8: ='Attestation 2023'!$H$8 -> 0 | D8: ='Attestation 2024'!$H$8 -> 0 | E8: ='Attestation 2025'!$H$8 -> 0 | F8: =SUM(B8:E8) -> 0
A9: Total des dépenses engagées par la collectivité | B9: ='Attestation 2022'!$G$35 -> 0 | C9: ='Attestation 2023'!$G$35 -> 0 | D9: ='Attestation 2024'!$G$35 -> 0 | E9: ='Attestation 2025'!$G$35 -> 0 | F9: =SUM(B9:E9) -> 0
A10: Total des co-financements apportés par les CEE | B10: ='Attestation 2022'!$K$37 -> 0 | C10: ='Attestation 2023'!$K$37 -> 0 | D10: ='Attestation 2024'!$K$37 -> 0 | E10: ='Attestation 2025'!$K$37 -> 0 | F10: =SUM(B10:E10) -> 0
B11: Actions | D11: Frais directs | E11: Moyens humains | F11: Total | G11: Plafonds éligibles | H11: Taux de co-financement CEE | I11: Total plafonné | J11: Total de co-financement CEE
A12: 2022 | B12: 1. Animation territoriale | D12: ='Attestation 2022'!D29 -> 0 | E12: ='Attestation 2022'!E29 -> 0 | F12: ='Attestation 2022'!G29 -> 0 | G12: ='Attestation 2022'!H29 -> 50000 | H12: ='Attestation 2022'!I29 -> 0.7 | I12: ='Attestation 2022'!J29 -> 35000 | J12: ='Attestation 2022'!K29 -> 0
A13: 2023 | D13: ='Attestation 2023'!D29 -> 0 | E13: ='Attestation 2023'!E29 -> 0 | F13: ='Attestation 2023'!G29 -> 0 | G13: ='Attestation 2023'!H29 -> 25000 | H13: ='Attestation 2023'!I29 -> 0.7 | I13: ='Attestation 2023'!J29 -> 17500 | J13: ='Attestation 2023'!K29 -> 0
A14: 2024 | D14: ='Attestation 2024'!D29 -> 0 | E14: ='Attestation 2024'!E29 -> 0 | F14: ='Attestation 2024'!G29 -> 0 | G14: ='Attestation 2024'!H29 -> 25000 | H14: ='Attestation 2024'!I29 -> 0.6 | I14: ='Attestation 2024'!J29 -> 15000 | J14: ='Attestation 2024'!K29 -> 0
A15: 2025 | D15: ='Attestation 2025'!D29 -> 0 | E15: ='Attestation 2025'!E29 -> 0 | F15: ='Attestation 2025'!G29 -> 0 | G15: ='Attestation 2025'!H29 -> 25000 | H15: ='Attestation 2025'!I29 -> 0.6 | I15: ='Attestation 2025'!J29 -> 15000 | J15: ='Attestation 2025'!K29 -> 0
A17: 2022 | B17: 2. Diagnostics socio-techniques et soutien renforcé | D17: ='Attestation 2022'!D30 -> 0 | E17: ='Attestation 2022'!E30 -> 0 | F17: ='Attestation 2022'!G30 -> 0 | G17: ='Attestation 2022'!H30 -> 0 | H17: ='Attestation 2022'!I30 -> 0.7 | I17: ='Attestation 2022'!J30 -> 0 | J17: ='Attestation 2022'!K30 -> 0
A18: 2023 | D18: ='Attestation 2023'!D30 -> 0 | E18: ='Attestation 2023'!E30 -> 0 | F18: ='Attestation 2023'!G30 -> 0 | G18: ='Attestation 2023'!H30 -> 0 | H18: ='Attestation 2023'!I30 -> 0.7 | I18: ='Attestation 2023'!J30 -> 0 | J18: ='Attestation 2023'!K30 -> 0
A19: 2024 | D19: ='Attestation 2024'!D30 -> 0 | E19: ='Attestation 2024'!E30 -> 0 | F19: ='Attestation 2024'!G30 -> 0 | G19: ='Attestation 2024'!H30 -> 0 | H19: ='Attestation 2024'!I30 -> 0.6 | I19: ='Attestation 2024'!J30 -> 0 | J19: ='Attestation 2024'!K30 -> 0
A20: 2025 | D20: ='Attestation 2025'!D30 -> 0 | E20: ='Attestation 2025'!E30 -> 0 | F20: ='Attestation 2025'!G30 -> 0 | G20: ='Attestation 2025'!H30 -> 0 | H20: ='Attestation 2025'!I30 -> 0.6 | I20: ='Attestation 2025'!J30 -> 0 | J20: ='Attestation 2025'!K30 -> 0
A22: 2022 | B22: 3. Evaluation | D22: ='Attestation 2022'!D31 -> 0 | E22: ='Attestation 2022'!E31 -> 0 | F22: ='Attestation 2022'!G31 -> 0 | G22: ='Attestation 2022'!H31 -> 20000 | H22: ='Attestation 2022'!I31 -> 0.7 | I22: ='Attestation 2022'!J31 -> 14000 | J22: ='Attestation 2022'!K31 -> 0
A23: 2023 | D23: ='Attestation 2023'!D31 -> 0 | E23: ='Attestation 2023'!E31 -> 0 | F23: ='Attestation 2023'!G31 -> 0 | G23: ='Attestation 2023'!H31 -> 20000 | H23: ='Attestation 2023'!I31 -> 0.7 | I23: ='Attestation 2023'!J31 -> 14000 | J23: ='Attestation 2023'!K31 -> 0
A24: 2024 | D24: ='Attestation 2024'!D31 -> 0 | E24: ='Attestation 2024'!E31 -> 0 | F24: ='Attestation 2024'!G31 -> 0 | G24: ='Attestation 2024'!H31 -> 20000 | H24: ='Attestation 2024'!I31 -> 0.6 | I24: ='Attestation 2024'!J31 -> 12000 | J24: ='Attestation 2024'!K31 -> 0
A25: 2025 | D25: ='Attestation 2025'!D31 -> 0 | E25: ='Attestation 2025'!E31 -> 0 | F25: ='Attestation 2025'!G31 -> 0 | G25: ='Attestation 2025'!H31 -> 20000 | H25: ='Attestation 2025'!I31 -> 0.6 | I25: ='Attestation 2025'!J31 -> 12000 | J25: ='Attestation 2025'!K31 -> 0
A27: 2022 | B27: 4.1 Fomations | D27: ='Attestation 2022'!D32 -> 0 | E27: ='Attestation 2022'!E32 -> 0 | F27: ='Attestation 2022'!G32 -> 0 | G27: ='Attestation 2022'!H32 -> 0 | H27: ='Attestation 2022'!I32 -> 0.75 | I27: ='Attestation 2022'!J32 -> N/A | J27: ='Attestation 2022'!K32 -> 0
A28: 2023 | D28: ='Attestation 2023'!D32 -> 0 | E28: ='Attestation 2023'!E32 -> 0 | F28: ='Attestation 2023'!G32 -> 0 | G28: ='Attestation 2023'!H32 -> 0 | H28: ='Attestation 2023'!I32 -> 0.75 | I28: ='Attestation 2023'!J32 -> N/A | J28: ='Attestation 2023'!K32 -> 0
A29: 2024 | D29: ='Attestation 2024'!D32 -> 0 | E29: ='Attestation 2024'!E32 -> 0 | F29: ='Attestation 2024'!G32 -> 0 | G29: ='Attestation 2024'!H32 -> 0 | H29: ='Attestation 2024'!I32 -> 0.75 | I29: ='Attestation 2024'!J32 -> N/A | J29: ='Attestation 2024'!K32 -> 0
A30: 2025 | D30: ='Attestation 2025'!D32 -> 0 | E30: ='Attestation 2025'!E32 -> 0 | F30: ='Attestation 2025'!G32 -> 0 | G30: ='Attestation 2025'!H32 -> 0 | H30: ='Attestation 2025'!I32 -> 0.75 | I30: ='Attestation 2025'!J32 -> N/A | J30: ='Attestation 2025'!K32 -> 0
A32: 2022 | B32: 4.2 Accompagnement méthodologique | D32: ='Attestation 2022'!D33 -> 0 | E32: ='Attestation 2022'!E33 -> - | F32: ='Attestation 2022'!G33 -> 0 | G32: ='Attestation 2022'!H33 -> 3333.33 | H32: ='Attestation 2022'!I33 -> 0.75 | I32: ='Attestation 2022'!J33 -> 2499.9975 | J32: ='Attestation 2022'!K33 -> 0
A33: 2023 | D33: ='Attestation 2023'!D33 -> 0 | E33: ='Attestation 2023'!E33 -> - | F33: ='Attestation 2023'!G33 -> 0 | G33: ='Attestation 2023'!H33 -> 3333.33 | H33: ='Attestation 2023'!I33 -> 0.75 | I33: ='Attestation 2023'!J33 -> 2499.9975 | J33: ='Attestation 2023'!K33 -> 0
A34: 2024 | D34: ='Attestation 2024'!D33 -> 0 | E34: ='Attestation 2024'!E33 -> - | F34: ='Attestation 2024'!G33 -> 0 | G34: ='Attestation 2024'!H33 -> 3333.33 | H34: ='Attestation 2024'!I33 -> 0.75 | I34: ='Attestation 2024'!J33 -> 2499.9975 | J34: ='Attestation 2024'!K33 -> 0
A35: 2025 | D35: ='Attestation 2025'!D33 -> 0 | E35: ='Attestation 2025'!E33 -> - | F35: ='Attestation 2025'!G33 -> 0 | G35: ='Attestation 2025'!H33 -> 3333.33 | H35: ='Attestation 2025'!I33 -> 0.75 | I35: ='Attestation 2025'!J33 -> 2499.9975 | J35: ='Attestation 2025'!K33 -> 0

Sheet Listes
A1: Année | B1: Année dispositif | C1: Forfait | D1: Soutien renforcé supplémentaire | E1: Type de collectivité | F1: Coordination / Animation territoriale | G1: Diagnostics socio-techniques et soutien renforcé | H1: Evaluation | I1: Formations | J1: Accompagnement méthodologique | K1: Coûts connexes | L1: Type de coût | M1: Intitule
A2: 2022 | B2: 1ère année | C2: OUI | D2: NON | E2: Conseil régional | F2: Gestion et suivi administratif | G2: Coordination des visites à domicile | H2: Gestion et suivi administratif | I2: Frais de formation au diagnostic sociotechnique | J2: Frais d'accompagnement méthodologique par un "Ambassadeur du Slime" | K2: 0.25 | L2: FORFAITAIRE | M2: TECHNICIEN / CONSEILLER / CHARGE DE MISSION
A3: 2023 | B3: 2ème année | C3: NON | D3: 0.1 | E3: Conseil départemental | F3: Actions de sensibilisation, animation et formation auprès des professionnels | G3: Réalisation des visites à domicile | H3: Réalisation de l'évaluation | I3: Habilitation électrique | L3: REEL | M3: TRAVAILLEUR SOCIAL
A4: 2024 | B4: 3ème année | D4: 0.2 | E4: Métropole | F4: Communication | G4: Recrutement des chargés de visites | H4: Coordination et suivi opérationnel de l'évaluation | I4: Autre (préciser à droite) | M4: CHARGE DE COMMUNICATION
A5: 2025 | B5: 4ème année | D5: 0.3 | E5: Autre type | F5: Déplacements | G5: Soutien renforcé (hors médiation) | H5: Autre (préciser à droite)
D6: 0.4 | F6: Coordination et suivi opérationnel du dispositif | G6: Déplacements
D7: 0.5 | F7: Autre (préciser à droite) | G7: Équipements d'économies d'énergie
D8: 0.6 | G8: Équipements de mesure mis à disposition des chargés de visite
D9: 0.7 | G9: Réalisation des médiations
D10: 0.8 | G10: Autre (préciser à droite)
